fUST/lending_fUST_20240726
["ID","MTS","AMOUNT","RATE_DAILY","PERIOD"]
[333246741,1721976648909,-293.9878237,0.000138,2]
[333246742,1721976648919,-153.6875328,0.000138,2]
[333246743,1721976648929,-153.0,0.000138,2]
[333246744,1721976648939,-293.9641968,0.000138,2]
[333246745,1721976648949,-154.0414234,0.000138,2]
[333246746,1721976648960,-153.0,0.000138,2]
[333246747,1721976648972,-153.0,0.000138,2]
[333246748,1721976648983,-153.0,0.000138,2]
[333246749,1721976648994,-154.4433292,0.000138,2]
[333246750,1721976649004,-220.095671,0.00013801,2]
[333246751,1721976649015,-220.095671,0.00013801,2]
[333246752,1721976649026,-153.0,0.00013801,2]
[333246753,1721976649036,-153.0,0.00013801,2]
[333246754,1721976649048,-153.0,0.00013801,2]
[333246755,1721976649059,-153.0,0.00013801,2]
[333246756,1721976649069,-153.0,0.00013801,2]
[333246757,1721976649079,-153.0,0.00013801,2]
[333246758,1721976649089,-153.0,0.00013801,2]
[333246759,1721976649099,-153.0,0.00013801,2]
[333246760,1721976649110,-153.0,0.00013801,2]
[333246761,1721976649120,-153.0,0.00013801,2]
[333246762,1721976649130,-153.0,0.00013801,2]
[333246763,1721976649141,-153.0,0.00013801,2]
[333246764,1721976649150,-191.0,0.00013801,2]
[333246765,1721976649161,-191.0,0.00013801,2]
[333246766,1721976649171,-191.0,0.00013801,2]
[333246767,1721976649180,-191.0,0.00013801,2]
[333246768,1721976649190,-191.0,0.00013801,2]
[333246769,1721976649200,-191.0,0.00013801,2]
[333246770,1721976649210,-191.0,0.00013801,2]
[333246771,1721976649221,-191.0,0.00013801,2]
[333246772,1721976649232,-191.0,0.00013801,2]
[333246773,1721976649242,-191.0,0.00013801,2]
[333246774,1721976649252,-191.0,0.00013801,2]
[333246775,1721976649262,-191.0,0.00013801,2]
[333246776,1721976649271,-191.0,0.00013801,2]
[333246777,1721976649282,-191.0,0.00013801,2]
[333246778,1721976649292,-191.0,0.00013801,2]
[333246779,1721976649303,-191.0,0.00013801,2]
[333246780,1721976649313,-191.0,0.00013801,2]
[333246781,1721976649326,-191.0,0.00013801,2]
[333246782,1721976649337,-191.0,0.00013801,2]
[333246783,1721976649347,-191.0,0.00013801,2]
[333246784,1721976649358,-191.0,0.00013801,2]
[333246785,1721976649369,-191.0,0.00013801,2]
[333246786,1721976649381,-191.0,0.00013801,2]
[333246787,1721976649392,-191.0,0.00013801,2]
[333246788,1721976649402,-191.0,0.00013801,2]
[333246789,1721976649413,-191.0,0.00013801,2]
[333246790,1721976649422,-191.0,0.00013801,2]
[333246791,1721976649433,-191.0,0.00013801,2]
[333246792,1721976649444,-191.0,0.00013801,2]
[333246793,1721976649454,-191.0,0.00013801,2]
[333246794,1721976649466,-191.0,0.00013801,2]
[333246795,1721976649477,-191.0,0.00013801,2]
[333246796,1721976649488,-191.0,0.00013801,2]
[333246797,1721976649499,-191.0,0.00013801,2]
[333246798,1721976649510,-191.0,0.00013801,2]
[333246799,1721976649522,-191.0,0.00013801,2]
[333246800,1721976649534,-191.0,0.00013801,2]
[333246801,1721976649545,-191.0,0.00013801,2]
[333246802,1721976649557,-191.0,0.00013801,2]
[333246803,1721976649567,-191.0,0.00013801,2]
[333246804,1721976649577,-191.0,0.00013801,2]
[333246805,1721976649588,-191.0,0.00013801,2]
[333246806,1721976649599,-191.0,0.00013801,2]
[333246807,1721976649609,-191.0,0.00013801,2]
[333246808,1721976649619,-191.0,0.00013801,2]
[333246809,1721976649631,-191.0,0.00013801,2]
[333246810,1721976649642,-191.0,0.00013801,2]
[333246811,1721976649653,-191.0,0.00013801,2]
[333246812,1721976649664,-191.0,0.00013801,2]
[333246813,1721976649675,-191.0,0.00013801,2]
[333246814,1721976649687,-191.0,0.00013801,2]
[333246815,1721976649697,-191.0,0.00013801,2]
[333246816,1721976649708,-191.0,0.00013801,2]
[333246817,1721976649719,-191.0,0.00013801,2]
[333246818,1721976649729,-191.0,0.00013801,2]
[333246819,1721976649740,-191.0,0.00013801,2]
[333246820,1721976649750,-191.0,0.00013801,2]
[333246821,1721976649760,-191.0,0.00013801,2]
[333246822,1721976649771,-191.0,0.00013801,2]
[333246823,1721976649781,-191.0,0.00013801,2]
[333246824,1721976649791,-191.0,0.00013801,2]
[333246825,1721976649801,-191.0,0.00013801,2]
[333246826,1721976649812,-191.0,0.00013801,2]
[333246827,1721976649822,-191.0,0.00013801,2]
[333246828,1721976649832,-191.0,0.00013801,2]
[333246829,1721976649842,-191.0,0.00013801,2]
[333246830,1721976649852,-191.0,0.00013801,2]
[333246831,1721976649863,-191.0,0.00013801,2]
[333246832,1721976649876,-191.0,0.00013801,2]
[333246833,1721976649888,-191.0,0.00013801,2]
[333246834,1721976649898,-191.0,0.00013801,2]
[333246835,1721976649909,-191.0,0.00013801,2]
[333246836,1721976649918,-191.0,0.00013801,2]
[333246837,1721976649928,-191.0,0.00013801,2]
[333246838,1721976649937,-191.0,0.00013801,2]
[333246839,1721976649947,-191.0,0.00013801,2]
[333246840,1721976649956,-191.0,0.00013801,2]
[333246841,1721976649965,-191.0,0.00013801,2]
[333246842,1721976649977,-191.0,0.00013801,2]
[333246843,1721976649987,-191.0,0.00013801,2]
[333246844,1721976649997,-191.0,0.00013801,2]
[333246845,1721976650007,-191.0,0.00013801,2]
[333246846,1721976650019,-191.0,0.00013801,2]
[333246847,1721976650028,-191.0,0.00013801,2]
[333246848,1721976650038,-191.0,0.00013801,2]
[333246849,1721976650048,-191.0,0.00013801,2]
[333246850,1721976650058,-191.0,0.00013801,2]
[333246851,1721976650068,-191.0,0.00013801,2]
[333246852,1721976650079,-191.0,0.00013801,2]
[333246853,1721976650088,-191.0,0.00013801,2]
[333246854,1721976650097,-191.0,0.00013801,2]
[333246855,1721976650106,-191.0,0.00013801,2]
[333246856,1721976650116,-191.0,0.00013801,2]
[333246857,1721976650128,-191.0,0.00013801,2]
[333246858,1721976650139,-191.0,0.00013801,2]
[333246859,1721976650149,-191.0,0.00013801,2]
[333246860,1721976650160,-191.0,0.00013801,2]
[333246861,1721976650170,-206.7446654,0.000139,2]
[333246862,1721976650181,-306.4144883,0.000139,2]
[333246863,1721976650298,-153.0,0.000139,2]
[333246864,1721976650322,-154.1044328,0.000139,2]
[333246865,1721976650332,-153.0,0.000139,2]
[333246866,1721976650341,-206.7446654,0.000139,2]
[333246867,1721976650351,-600.0,0.00013939,2]
[333246868,1721976650361,-151.26329,0.00013951,2]
[333246869,1721976650371,-151.0,0.00013962,2]
[333246870,1721976650382,-206.36662,0.00013962,2]
[333246871,1721976650393,-206.36662,0.00013962,2]
[333246872,1721976650406,-266.428987,0.00013962,2]
[333246873,1721976650417,-266.428987,0.00013962,2]
[333246874,1721976650429,-500.0,0.00013971,2]
[333246875,1721976650439,-500.0,0.00013971,2]
[333246876,1721976650449,-740.6,0.00013971,2]
[333246877,1721976650458,-740.6,0.00013971,2]
[333246878,1721976650468,-740.6,0.00013971,2]
[333246879,1721976650477,-740.6,0.00013971,2]
[333246880,1721976650488,-740.6,0.00013971,2]
[333246881,1721976650497,-740.6,0.00013971,2]
[333246882,1721976650507,-740.6,0.00013971,2]
[333246883,1721976650517,-740.6,0.00013971,2]
[333246884,1721976650526,-740.6,0.00013971,2]
[333246885,1721976650536,-740.6,0.00013971,2]
[333246886,1721976650545,-740.62277809,0.00013971,2]
[333246887,1721976650555,-151.0,0.00013971,2]
[333246888,1721976650565,-11452.71734755,0.00013972,5]
[333246889,1721976650575,-538.14,0.00013972,2]
[333246890,1721976650584,-516.89597913,0.00013972,2]
[333246891,1721976650594,-500.0,0.00013972,2]
[333246892,1721976650603,-500.0,0.00013972,2]
[333246893,1721976650613,-500.0,0.00013972,2]
[333246894,1721976650622,-500.0,0.00013972,2]
[333246895,1721976650633,-500.0,0.00013972,2]
[333246896,1721976650642,-500.0,0.00013972,2]
[333246897,1721976650652,-500.0,0.00013972,2]
[333246898,1721976650661,-1058.69,0.00013972,2]
[333246899,1721976650670,-500.0,0.00013972,2]
[333246900,1721976650680,-500.0,0.00013972,2]
[333246901,1721976650690,-164.79626247,0.00013972,2]
[333246902,1721976650700,-500.0,0.00013972,2]
[333246903,1721976650711,-500.0,0.00013972,2]
[333246904,1721976650720,-500.0,0.00013972,2]
[333246905,1721976650730,-501.6976513,0.00013972,2]
[333246906,1721976650740,-505.76600272,0.00013972,2]
[333246907,1721976650750,-500.0,0.00013972,2]
[333246908,1721976650759,-500.0,0.00013972,2]
[333246909,1721976650769,-500.0,0.00013972,2]
[333246910,1721976650778,-500.0,0.00013972,2]
[333246911,1721976650788,-578.68,0.00013972,2]
[333246912,1721976650797,-500.0,0.00013972,2]
[333246913,1721976650808,-509.93060342,0.00013972,2]
[333246914,1721976650818,-504.26672933,0.00013972,2]
[333246915,1721976650828,-500.0,0.00013972,2]
[333246916,1721976650839,-500.0,0.00013972,2]
[333246917,1721976650848,-508.31926332,0.00013972,2]
[333246918,1721976650860,-506.40701166,0.00013972,2]
[333246919,1721976650870,-500.0,0.00013972,2]
[333246920,1721976650882,-500.0,0.00013972,2]
[333246921,1721976650891,-500.0,0.00013972,2]
[333246922,1721976650902,-500.0,0.00013972,2]
[333246923,1721976650913,-799.98,0.00013972,2]
[333246924,1721976650925,-1245.42,0.00013972,2]
[333246925,1721976650936,-500.0,0.00013972,2]
[333246926,1721976650946,-500.0,0.00013972,2]
[333246927,1721976650957,-685.7,0.00013972,2]
[333246928,1721976650968,-605.80698513,0.00013972,2]
[333246929,1721976650980,-513.2,0.00013972,2]
[333246930,1721976650991,-500.0,0.00013972,2]
[333246931,1721976651001,-500.0,0.00013972,2]
[333246932,1721976651012,-501.5015202,0.00013972,2]
[333246933,1721976651022,-500.0,0.00013972,2]
[333246934,1721976651033,-512.18268856,0.00013972,2]
[333246935,1721976651044,-236.96465992,0.00013972,2]
[333246936,1721976651055,-500.0,0.00013972,2]
[333246937,1721976651066,-505.30884357,0.00013972,2]
[333246938,1721976651077,-500.0,0.00013972,2]
[333246939,1721976651088,-500.0,0.00013972,2]
[333246940,1721976651098,-500.0,0.00013972,2]
[333246941,1721976651108,-500.0,0.00013972,2]
[333246942,1721976651120,-519.42702461,0.00013972,2]
[333246943,1721976651134,-502.47383564,0.00013972,2]
[333246944,1721976651145,-500.0,0.00013972,2]
[333246945,1721976651159,-505.69652042,0.00013972,2]
[333246946,1721976651168,-508.25558177,0.00013972,2]
[333246947,1721976651177,-693.06,0.00013972,2]
[333246948,1721976651186,-500.0,0.00013972,2]
[333246949,1721976651195,-791.19,0.00013972,2]
[333246950,1721976651205,-500.0,0.00013972,2]
[333246951,1721976651215,-500.0,0.00013972,2]
[333246952,1721976651224,-500.0,0.00013972,2]
[333246953,1721976651233,-500.0,0.00013972,2]
[333246954,1721976651243,-500.0,0.00013972,2]
[333246955,1721976651253,-500.0,0.00013972,2]
[333246956,1721976651262,-574.9,0.00013972,2]
[333246957,1721976651272,-500.0,0.00013972,2]
[333246958,1721976651281,-500.0,0.00013972,2]
[333246959,1721976651290,-500.0,0.00013972,2]
[333246960,1721976651300,-505.60113204,0.00013972,2]
[333246961,1721976651310,-500.0,0.00013972,2]
[333246962,1721976651320,-500.0,0.00013972,2]
[333246963,1721976651329,-500.0,0.00013972,2]
[333246964,1721976651339,-502.34,0.00013972,2]
[333246965,1721976651348,-500.0,0.00013972,2]
[333246966,1721976651359,-639.26,0.00013972,2]
[333246967,1721976651370,-500.0,0.00013972,2]
[333246968,1721976651384,-500.0,0.00013972,2]
[333246969,1721976651394,-677.3,0.00013972,2]
[333246970,1721976651404,-500.0,0.00013972,2]
[333246971,1721976651415,-500.0,0.00013972,2]
[333246972,1721976651426,-616.32926765,0.00013972,2]
[333246973,1721976651436,-500.0,0.00013972,2]
[333246974,1721976651450,-500.0,0.00013972,2]
[333246975,1721976651460,-1787.1,0.00013972,2]
[333246976,1721976651471,-548.24,0.00013972,2]
[333246977,1721976651480,-500.0,0.00013972,2]
[333246978,1721976651492,-500.0,0.00013972,2]
[333246979,1721976651503,-505.97444456,0.00013972,2]
[333246980,1721976651514,-500.0,0.00013972,2]
[333246981,1721976651525,-500.0,0.00013972,2]
[333246982,1721976651535,-500.0,0.00013972,2]
[333246983,1721976651546,-500.0,0.00013972,2]
[333246984,1721976651557,-500.0,0.00013972,2]
[333246985,1721976651569,-500.0,0.00013972,2]
[333246986,1721976651580,-500.0,0.00013972,2]
[333246987,1721976651592,-1115.44,0.00013972,2]
[333246988,1721976651604,-500.0,0.00013972,2]
[333246989,1721976651615,-500.0,0.00013972,2]
[333246990,1721976651626,-500.0,0.00013972,2]
[333246991,1721976651637,-1171.1,0.00013972,2]
[333246992,1721976651648,-500.0,0.00013972,2]
[333246993,1721976651659,-500.0,0.00013972,2]
[333246994,1721976651673,-500.0,0.00013972,2]
[333246995,1721976651684,-500.0,0.00013972,2]
[333246996,1721976651695,-500.0,0.00013972,2]
[333246997,1721976651708,-500.0,0.00013972,2]
[333246998,1721976651718,-500.0,0.00013972,2]
[333246999,1721976651727,-500.0,0.00013972,2]
[333247000,1721976651737,-500.0,0.00013972,2]
[333247001,1721976651746,-500.0,0.00013972,2]
[333247002,1721976651755,-500.0,0.00013972,2]
[333247003,1721976651765,-500.0,0.00013972,2]
[333247004,1721976651774,-500.0,0.00013972,2]
[333247005,1721976651784,-1102.4,0.00013972,2]
[333247006,1721976651794,-500.0,0.00013972,2]
[333247007,1721976651804,-500.0,0.00013972,2]
[333247008,1721976651815,-500.0,0.00013972,2]
[333247009,1721976651827,-500.0,0.00013972,2]
[333247010,1721976651838,-500.0,0.00013972,2]
[333247011,1721976651847,-500.0,0.00013972,2]
[333247012,1721976651857,-500.0,0.00013972,2]
[333247013,1721976651867,-1067.62,0.00013972,2]
[333247014,1721976651879,-500.0,0.00013972,2]
[333247015,1721976651889,-559.32,0.00013972,2]
[333247016,1721976651898,-500.0,0.00013972,2]
[333247017,1721976651910,-500.0,0.00013972,2]
[333247018,1721976651920,-635.04130408,0.00013972,2]
[333247019,1721976651932,-510.5,0.00013972,2]
[333247020,1721976651944,-500.0,0.00013972,2]
[333247021,1721976651955,-5934.86,0.00013972,2]
[333247022,1721976651966,-500.0,0.00013972,2]
[333247023,1721976651980,-509.84548094,0.00013972,2]
[333247024,1721976651990,-984.04,0.00013972,2]
[333247025,1721976652000,-500.0,0.00013972,2]
[333247026,1721976652011,-500.0,0.00013972,2]
[333247027,1721976652021,-913.44,0.00013972,2]
[333247028,1721976652031,-186.77593733,0.00013972,2]
[333247029,1721976652042,-500.0,0.00013972,2]
[333247030,1721976652054,-500.0,0.00013972,2]
[333247031,1721976652064,-660.95,0.00013972,2]
[333247032,1721976652075,-500.0,0.00013972,2]
[333247033,1721976652086,-500.0,0.00013972,2]
[333247034,1721976652096,-7223.94,0.00013972,2]
[333247035,1721976652106,-500.0,0.00013972,2]
[333247036,1721976652116,-1135.64,0.00013972,2]
[333247037,1721976652127,-500.0,0.00013972,2]
[333247038,1721976652136,-500.0,0.00013972,2]
[333247039,1721976652145,-545.37,0.00013972,2]
[333247040,1721976652155,-500.0,0.00013972,2]
[333247041,1721976652165,-500.0,0.00013972,2]
[333247042,1721976652176,-720.7,0.00013972,2]
[333247043,1721976652188,-1030.3,0.00013972,2]
[333247044,1721976652199,-677.8,0.00013972,2]
[333247045,1721976652209,-3228.97,0.00013972,2]
[333247046,1721976652218,-500.0,0.00013972,2]
[333247047,1721976652230,-678.46,0.00013972,2]
[333247048,1721976652241,-511.62744072,0.00013972,2]
[333247049,1721976652252,-500.0,0.00013972,2]
[333247050,1721976652264,-500.0,0.00013972,2]
[333247051,1721976652275,-500.0,0.00013972,2]
[333247052,1721976652287,-500.0,0.00013972,2]
[333247053,1721976652298,-1078.13,0.00013972,2]
[333247054,1721976652308,-762.78,0.00013972,2]
[333247055,1721976652318,-500.0,0.00013972,2]
[333247056,1721976652330,-1598.94,0.00013972,2]
[333247057,1721976652340,-500.0,0.00013972,2]
[333247058,1721976652351,-3140.86,0.00013972,2]
[333247059,1721976652361,-500.0,0.00013972,2]
[333247060,1721976652370,-695.8,0.00013972,2]
[333247061,1721976652381,-500.0,0.00013972,2]
[333247062,1721976652390,-500.0,0.00013972,2]
[333247063,1721976652400,-1286.52,0.00013972,2]
[333247064,1721976652410,-871.65,0.00013972,2]
[333247065,1721976652420,-350.31172901,0.00013972,2]
[333247066,1721976652431,-633.13,0.00013972,2]
[333247067,1721976652441,-860.96,0.00013972,2]
[333247068,1721976652452,-500.0,0.00013972,2]
[333247069,1721976652462,-971.16,0.00013972,2]
[333247070,1721976652474,-500.0,0.00013972,2]
[333247071,1721976652483,-943.8,0.00013972,2]
[333247072,1721976652493,-500.0,0.00013972,2]
[333247073,1721976652504,-1109.89,0.00013972,2]
[333247074,1721976652513,-6081.05,0.00013972,2]
[333247075,1721976652523,-500.0,0.00013972,2]
[333247076,1721976652533,-500.0,0.00013972,2]
[333247077,1721976652545,-568.63,0.00013972,2]
[333247078,1721976652555,-669.58,0.00013972,2]
[333247079,1721976652565,-2701.76,0.00013972,2]
[333247080,1721976652574,-772.0,0.00013972,2]
[333247081,1721976652584,-500.0,0.00013972,2]
[333247082,1721976652594,-500.0,0.00013972,2]
[333247083,1721976652604,-500.0,0.00013972,2]
[333247084,1721976652614,-500.0,0.00013972,2]
[333247085,1721976652624,-3688.09,0.00013972,2]
[333247086,1721976652637,-1048.03,0.00013972,2]
[333247087,1721976652647,-500.0,0.00013972,2]
[333247088,1721976652657,-600.48,0.00013972,2]
[333247089,1721976652666,-500.0,0.00013972,2]
[333247090,1721976652676,-666.21,0.00013972,2]
[333247091,1721976652686,-1022.41,0.00013972,2]
[333247092,1721976652696,-500.0,0.00013972,2]
[333247093,1721976652705,-952.2,0.00013972,2]
[333247094,1721976652715,-500.0,0.00013972,2]
[333247095,1721976652724,-1225.02,0.00013972,2]
[333247096,1721976652733,-500.0,0.00013972,2]
[333247097,1721976652742,-1226.57,0.00013972,2]
[333247098,1721976652752,-502.5900231,0.00013972,2]
[333247099,1721976652761,-375.91383194,0.00013972,2]
[333247100,1721976652770,-500.0,0.00013972,2]
[333247101,1721976652780,-500.0,0.00013972,2]
[333247102,1721976652789,-1324.8,0.00013972,2]
[333247103,1721976652798,-433.38799302,0.00013972,2]
[333247104,1721976652807,-500.0,0.00013972,2]
[333247105,1721976652816,-984.56,0.00013972,2]
[333247106,1721976652825,-500.0,0.00013972,2]
[333247107,1721976652834,-1063.4,0.00013972,2]
[333247108,1721976652844,-350.62456339,0.00013972,2]
[333247109,1721976652853,-1993.05,0.00013972,2]
[333247110,1721976652862,-500.0,0.00013972,2]
[333247111,1721976652872,-500.0,0.00013972,2]
[333247112,1721976652883,-500.0,0.00013972,2]
[333247113,1721976652893,-1145.89,0.00013972,2]
[333247114,1721976652902,-500.0,0.00013972,2]
[333247115,1721976652911,-500.0,0.00013972,2]
[333247116,1721976652920,-500.0,0.00013972,2]
[333247117,1721976652930,-998.91,0.00013972,2]
[333247118,1721976652939,-879.72,0.00013972,2]
[333247119,1721976652949,-500.0,0.00013972,2]
[333247120,1721976652958,-500.0,0.00013972,2]
[333247121,1721976652968,-500.0,0.00013972,2]
[333247122,1721976652979,-674.67,0.00013972,2]
[333247123,1721976652988,-500.0,0.00013972,2]
[333247124,1721976652997,-601.03,0.00013972,2]
[333247125,1721976653007,-502.36529503,0.00013972,2]
[333247126,1721976653018,-502.38203526,0.00013972,2]
[333247127,1721976653027,-500.0,0.00013972,2]
[333247128,1721976653036,-674.9,0.00013972,2]
[333247129,1721976653046,-2781.03,0.00013972,2]
[333247130,1721976653067,-500.0,0.00013972,2]
[333247131,1721976653076,-500.0,0.00013972,2]
[333247132,1721976653086,-507.50062194,0.00013972,2]
[333247133,1721976653096,-500.0,0.00013972,2]
[333247134,1721976653105,-500.0,0.00013972,2]
[333247135,1721976653115,-500.0,0.00013972,2]
[333247136,1721976653125,-500.0,0.00013972,2]
[333247137,1721976653135,-1427.25,0.00013972,2]
[333247138,1721976653145,-500.0,0.00013972,2]
[333247139,1721976653156,-651.32,0.00013972,2]
[333247140,1721976653331,-1020.09,0.00013972,2]
[333247141,1721976653341,-853.61,0.00013972,2]
[333247142,1721976653350,-1340.71,0.00013972,2]
[333247143,1721976653359,-502.03619974,0.00013972,2]
[333247144,1721976653369,-500.0,0.00013972,2]
[333247145,1721976653378,-500.0,0.00013972,2]
[333247146,1721976653387,-500.0,0.00013972,2]
[333247147,1721976653396,-500.0,0.00013972,2]
[333247148,1721976653405,-1453.44,0.00013972,2]
[333247149,1721976653415,-624.41,0.00013972,2]
[333247150,1721976653425,-500.0,0.00013972,2]
[333247151,1721976653435,-643.73,0.00013972,2]
[333247152,1721976653444,-1142.59,0.00013972,2]
[333247153,1721976653454,-819.81,0.00013972,2]
[333247154,1721976653463,-500.0,0.00013972,2]
[333247155,1721976653472,-500.0,0.00013972,2]
[333247156,1721976653481,-500.0,0.00013972,2]
[333247157,1721976653491,-1148.37,0.00013972,2]
[333247158,1721976653500,-2059.33,0.00013972,2]
[333247159,1721976653509,-500.0,0.00013972,2]
[333247160,1721976653518,-500.0,0.00013972,2]
[333247161,1721976653527,-1839.54,0.00013972,2]
[333247162,1721976653537,-1073.38,0.00013972,2]
[333247163,1721976653546,-846.13,0.00013972,2]
[333247164,1721976653555,-500.0,0.00013972,2]
[333247165,1721976653564,-500.0,0.00013972,2]
[333247166,1721976653573,-341.07035069,0.00013972,2]
[333247167,1721976653582,-1443.58,0.00013972,2]
[333247168,1721976653591,-599.36,0.00013972,2]
[333247169,1721976653600,-500.0,0.00013972,2]
[333247170,1721976653610,-500.0,0.00013972,2]
[333247171,1721976653619,-500.0,0.00013972,2]
[333247172,1721976653630,-522.34,0.00013972,2]
[333247173,1721976653640,-500.0,0.00013972,2]
[333247174,1721976653650,-500.0,0.00013972,2]
[333247175,1721976653660,-500.0,0.00013972,2]
[333247176,1721976653670,-503.77968087,0.00013972,2]
[333247177,1721976653681,-500.0,0.00013972,2]
[333247178,1721976653691,-500.0,0.00013972,2]
[333247179,1721976653701,-500.0,0.00013972,2]
[333247180,1721976653711,-500.0,0.00013972,2]
[333247181,1721976653721,-500.0,0.00013972,2]
[333247182,1721976653730,-500.0,0.00013972,2]
[333247183,1721976653740,-500.0,0.00013972,2]
[333247184,1721976653749,-500.14453354,0.00013972,2]
[333247185,1721976653759,-307.14047053,0.00013972,2]
[333247186,1721976653768,-500.0,0.00013972,2]
[333247187,1721976653778,-500.0,0.00013972,2]
[333247188,1721976653787,-507.36,0.00013972,2]
[333247189,1721976653797,-500.0,0.00013972,2]
[333247190,1721976653807,-524.65,0.00013972,2]
[333247191,1721976653818,-500.0,0.00013972,2]
[333247192,1721976653827,-500.0,0.00013972,2]
[333247193,1721976653837,-500.0,0.00013972,2]
[333247194,1721976653850,-500.0,0.00013972,2]
[333247195,1721976653859,-500.0,0.00013972,2]
[333247196,1721976653871,-500.0,0.00013972,2]
[333247197,1721976653881,-500.0,0.00013972,2]
[333247198,1721976653891,-500.0,0.00013972,2]
[333247199,1721976653901,-500.0,0.00013972,2]
[333247200,1721976653913,-509.80395528,0.00013972,2]
[333247201,1721976653924,-500.0,0.00013972,2]
[333247202,1721976653934,-538.59,0.00013972,2]
[333247203,1721976653945,-174.67,0.00013972,2]
[333247204,1721976653957,-174.9,0.00013972,2]
[333247205,1721976653970,-520.09,0.00013972,2]
[333247206,1721976653987,-500.0,0.00013972,2]
[333247207,1721976653999,-500.0,0.00013972,2]
[333247208,1721976654010,-500.0,0.00013972,2]
[333247209,1721976654023,-379.72,0.00013972,2]
[333247210,1721976654035,-522.41,0.00013972,2]
[333247211,1721976654046,-484.56,0.00013972,2]
[333247212,1721976654057,-500.0,0.00013972,2]
[333247213,1721976654068,-500.0,0.00013972,2]
[333247214,1721976654077,-500.0,0.00013972,2]
[333247215,1721976654087,-498.91,0.00013972,2]
[333247216,1721976654097,-500.0,0.00013972,2]
[333247217,1721976654106,-645.89,0.00013972,2]
[333247218,1721976654115,-500.0,0.00013972,2]
[333247219,1721976654125,-500.0,0.00013972,2]
[333247220,1721976654135,-299.98,0.00013972,2]
[333247221,1721976654145,-346.13,0.00013972,2]
[333247222,1721976654154,-151.32,0.00013972,2]
[333247223,1721976654164,-185.7,0.00013972,2]
[333247224,1721976654174,-353.61,0.00013972,2]
[333247225,1721976654184,-151.0,0.00013972,2]
[333247226,1721976654193,-151.0,0.00013972,2]
[333247227,1721976654203,-156.052143,0.00013972,2]
[333247228,1721976654213,-642.59,0.00013972,2]
[333247229,1721976654222,-500.0,0.00013972,2]
[333247230,1721976654232,-151.0,0.00013972,2]
[333247231,1721976654242,-151.0,0.00013972,2]
[333247232,1721976654252,-152.13584,0.00013972,2]
[333247233,1721976654262,-648.37,0.00013972,2]
[333247234,1721976654271,-573.38,0.00013972,2]
[333247235,1721976654281,-500.0,0.00013972,2]
[333247236,1721976654290,-441.81907341,0.00013972,2]
[333247237,1721976654299,-484.04,0.00013972,2]
[333247238,1721976654309,-193.06,0.00013972,2]
[333247239,1721976654318,-151.0,0.00013972,2]
[333247240,1721976654328,-160.95,0.00013972,2]